Workbook

Sheet úvěry k 31102022
A1: 00248266 Město Humpolec
A2: Investiční úvěry v Kč | B2: Splátky rok 2021 | C2: Splátky rok 2022 | D2: Splátky rok 2023 | E2: Splátky rok 2024 | F2: Splátky rok 2025 | G2: Splátky rok 2026 | H2: Splátky rok 2027 | I2: Splátky rok 2028 | J2: Splátky rok 2029 | K2: Splátky rok 2030 | L2: Splátky rok 2031 | M2: Splátky rok 2032 | N2: Splátky rok 2033 | O2: Splátky rok 2034
A3: Dlouhodobé úvěry - ČS, a.s. ZTV Blanická | B3: =D20*12 -> 3000000 | C3: =D20*12 -> 3000000 | D3: =C3 -> 3000000 | E3: =D3 -> 3000000 | F3: =C3 -> 3000000 | G3: 2085025.04 | H3: 0
A4: Dlouhodobý úvěr-zápůjčka SFŽP-Rekonstrukce technologie ZS | B4: =D21*4 -> 2280942.32 | C4: =D21*4 -> 2280942.32 | D4: =C4 -> 2280942.32 | E4: =D4 -> 2280942.32 | F4: =E4 -> 2280942.32 | G4: =F4 -> 2280942.32 | H4: =G4 -> 2280942.32 | I4: =H4 -> 2280942.32 | J4: =I4 -> 2280942.32 | K4: =J4-0.2 -> 2280942.12 | L4: 0
A5: Dlouhodobé úvěry- ČSOB, a.s. - výkup pozemků | F5: =-B22/10 -> 2046526 | G5: =F5 -> 2046526 | H5: 2046526 | I5: 2046526 | J5: 2046526 | K5: 2046526 | L5: 2046526 | M5: 2046526 | N5: 2046526 | O5: 2046526
A6: Celkem dle akt.čerpání | B6: =SUM(B7,B4,B3) -> 5280942.32 | C6: =SUM(C7,C4,C3) -> 5280942.32 | D6: =SUM(D7,D4,D3) -> 5280942.32 | E6: =SUM(E7,E4,E3) -> 5280942.32 | F6: =SUM(F3:F4,F5) -> 7327468.32 | G6: 6412493.36 | H6: 4327468.32 | I6: 4327468.32 | J6: 4327468.32 | K6: 4327468.12 | L6: 2046526 | M6: 2046526 | N6: 2046526 | O6: 2046526
A7: ČSOB použití zůstatku úvěr. rámce 100 mil.Kč | B7: 0 | C7: 0 | D7: 0 | E7: 0 | F7: =10000000-F5 -> 7953474 | G7: 7953474 | H7: 7953474 | I7: 7953474 | J7: 7953474 | K7: 7953474 | L7: 7953474 | M7: 7953474 | N7: 7953474 | O7: 7953474
A8: Celkem za úvěry(v případě dočerpání úvěr.rámce 100 mil. Kč (ČSOB)) | B8: =SUM(B7,B3:B4) -> 5280942.32 | C8: 5280942.32 | D8: 5280942.32 | E8: 5280942.32 | F8: 13234416.32 | G8: 12319441.36 | H8: 10234416.32 | I8: 10234416.32 | J8: 10234416.32 | K8: 10234416.12 | L8: 7953474 | M8: 7953474 | N8: 7953474 | O8: 7953474
A10: Investiční úvěry v Kč | B10: Stav úvěrů k 31. 12 2021 | C10: Stav úvěrů k 31.12.2022 | D10: Stav úvěrů k 31.12.2023 | E10: Stav úvěrů- k 31.12.2024 | F10: Stav úvěrů- k 31.12.2025 | G10: Stav úvěrů- k 31.12.2026 | H10: Stav úvěrů- k 31.12.2027 | I10: Stav úvěrů- k 31.12.2028 | J10: Stav úvěrů- k 31.12.2029 | K10: Stav úvěrů- k 31.12.2030 | L10: Stav úvěrů- k 31.12.2031 | M10: Stav úvěrů- k 31.12.2032 | N10: Stav úvěrů- k 31.12.2033 | O10: Stav úvěrů- k 31.12.2034
A11: Dlouhodobé úvěry - ČS, a.s. ZTV Blanická | B11: -14085025.04 | C11: =B11+D20*12 -> -11085025.04 | D11: =C11+C3 -> -8085025.04 | E11: =C3+D11 -> -5085025.04 | F11: 2085025.04 | G11: 0
A12: Dlouhodobý úvěr-zápůjčka SFŽP-Rekonstrukce technologie zimního stadionu | B12: -20528480.68 | C12: =B12+D21*4 -> -18247538.36 | D12: =C12+D4 -> -15966596.04 | E12: -13685653.72 | F12: -11404711.4 | G12: -9123769.08 | H12: -6842826.76 | I12: -4561884.44 | J12: -2280942.12 | K12: 0
A13: Dlouhodobé úvěry- ČSOB, a.s. - výkup pozemků
B14: -20465260 | C14: =B22 -> -20465260 | D14: =C14+C7 -> -20465260 | E14: =C7+D14 -> -20465260 | F14: =E14+F5 -> -18418734 | G14: -16372208 | H14: -14325682 | I14: -12279156 | J14: -10232630 | K14: -8186104 | L14: -6139578 | M14: -4093052 | N14: -2046526 | O14: 0
A15: Celkem úvěry | B15: =SUM(B11:B14) -> -55078765.72 | C15: =SUM(C11:C14) -> -49797823.4 | D15: =SUM(D11:D14) -> -44516881.08 | E15: =SUM(E12:E14) -> -34150913.72 | F15: -29823445.4 | G15: -25495977.08 | H15: -21168508.76 | I15: -16841040.44 | J15: -12513572.12 | K15: -8186104 | L15: -6139578 | M15: -4093052 | N15: -2046526 | O15: 0
A16: ČSOB zůstatek úvěr.rámce | E16: =-100000000-E14 -> -79534740 | F16: =E16+F7 -> -71581266 | G16: -63627792 | H16: -55674318 | I16: -47720844 | J16: -39767370 | K16: -31813896 | L16: -23860422 | M16: -15906948 | N16: -7953474 | O16: 0
A17: Celkem úvěry(v případě dočerpání úvěr.rámce 100 mil. Kč ČSOB | E17: =SUM(E15:E16) -> -113685653.7 | F17: -101404711.4 | G17: -89123769.08 | H17: -76842826.76 | I17: -64561884.44 | J17: -52280942.12 | K17: -40000000 | L17: -30000000 | M17: -20000000 | N17: -10000000 | O17: 0
A19: Investiční úvěry v Kč | B19: Stav úvěrů k 31. 10. 2022 | C19: Uhrazené úroky 2022 k 31. 10. 2022 | D19: 1 splátka Kč | E19: Režim splácení | G19: Úvěr do: | H19: Sazba
A20: Dlouhodobé úvěry - ČS, a.s. ZTV Blanická | B20: -11585025.04 | C20: 618804.5 | D20: 250000 | E20: měsíční splátky k 25. tému do 09/2026, ročně 3 mil. Kč | G20: 25.09.2026 | H20: 0,07% p.a.+1M PRIBOR
A21: Dlouhodobý úvěr-zápůjčka SFŽP-Rekonstrukce technologie zimního stadionu | B21: -18817773.94 | C21: 91095.14 | D21: 570235.58 | E21: čtvrtletní splátky k 25. 3., 25.6., 25.9. 25.12.2022, ročně 2 280 942,32 Kč | G21: 31.12.2030 | H21: 0,45% p.a.
A22: Dlouhodobé úvěry- ČSOB, a.s. - výkup pozemků | B22: =B14 -> -20465260 | C22: 977852.86 | D22: =10000000/12 -> 833333.3333 | E22: měsíční splátky od 01/2025: (ročně 10 mil. Kč), pokud se vyčerpá celý úvěrový rámec 100 mil. Kč do 12/2024 | G22: 27.12.2034 | H22: 0,08% p.a.+1M PRIBOR od 4. 1. 2021 do 31. 12. 2024 (po dobu čerpání úvěr.rámce) a fixní sazba 0,78% od 01/2025-do 27.12.2034 (po dobu splácení úvěru =10 let)
A24: Celkem úvěry | B24: =SUM(B20:B23) -> -50868058.98 | C24: =SUM(C20:C22) -> 1687752.5 | D24: x | E24: x | G24: x | H24: x
A26: PLNĚNÍ BĚŽNÝCH VÝDAJŮ K 31.10.2022 V KČ
C27: Upravený rozp. | D27: Skutečnost | E27: Plnění v Kč k UR | F27: Plnění v % k UR
A28: 5141 | B28: Úroky vlastní | C28: 2500000 | D28: 1687752.5 | E28: 812247.5 | F28: 67.5101
A30: Průměrné měsíční sazby PRIBOR 2022 v %
A31: 1 měsíc | B31: 3.93 | C31: 4.54 | D31: 4.69 | E31: 5.16 | F31: 5.77 | G31: 6.39 | H31: 7.14 | I31: 7.13 | J31: 7.12 | K31: 7.13
